fUST/lending_fUST_20250717
["ID","MTS","AMOUNT","RATE_DAILY","PERIOD"]
[372632117,1752718250979,-1726.3,0.00019015,2]
[372632118,1752718250988,-898.95,0.00019015,2]
[372632119,1752718250998,-360.25136547,0.00019015,2]
[372632120,1752718251007,-685.67,0.00019015,2]
[372632121,1752718251017,-460.0,0.00019015,2]
[372632122,1752718251027,-460.0,0.00019015,2]
[372632123,1752718251036,-460.0,0.00019015,2]
[372632124,1752718251045,-590.44,0.00019015,2]
[372632125,1752718251055,-663.06,0.00019015,2]
[372632126,1752718251064,-460.0,0.00019015,2]
[372632127,1752718251074,-460.0,0.00019015,2]
[372632128,1752718251083,-460.0,0.00019016,2]
[372632129,1752718251093,-460.0,0.00019016,2]
[372632130,1752718251102,-578.3,0.00019016,2]
[372632131,1752718251112,-460.0,0.00019016,2]
[372632132,1752718251124,-460.0,0.00019016,2]
[372632133,1752718251133,-805.3,0.00019016,2]
[372632134,1752718251143,-460.0,0.00019016,2]
[372632135,1752718251152,-466.75,0.00019016,2]
[372632136,1752718251162,-293.619493,0.00019016,2]
[372632137,1752718251171,-293.619493,0.00019016,2]
[372632138,1752718251181,-460.0,0.00019016,2]
[372632139,1752718251190,-856.6,0.00019016,2]
[372632140,1752718251199,-460.0,0.00019016,2]
[372632141,1752718251209,-649.93,0.00019016,2]
[372632142,1752718251218,-967.19,0.00019016,2]
[372632143,1752718251228,-1071.56,0.00019016,2]
[372632144,1752718251237,-460.0,0.00019016,2]
[372632145,1752718251247,-282.708891,0.00019016,2]
[372632146,1752718251256,-282.708891,0.00019016,2]
[372632147,1752718251266,-460.0,0.00019016,2]
[372632148,1752718251275,-460.0,0.00019016,2]
[372632149,1752718251285,-1415.87,0.00019016,2]
[372632150,1752718251294,-460.0,0.00019016,2]
[372632151,1752718251303,-563.75,0.00019016,2]
[372632152,1752718251313,-935.83,0.00019016,2]
[372632153,1752718251322,-616.4,0.00019016,2]
[372632154,1752718251331,-460.0,0.00019016,2]
[372632155,1752718251341,-2243.98,0.00019016,2]
[372632156,1752718251351,-468.2824904,0.00019016,2]
[372632157,1752718251362,-460.0,0.00019016,2]
[372632158,1752718251372,-4796.11,0.00019016,2]
[372632159,1752718251382,-5566.33,0.00019016,2]
[372632160,1752718251392,-1639.65,0.00019016,2]
[372632161,1752718251401,-480.30356035,0.00019016,2]
[372632162,1752718251411,-2114.97,0.00019016,2]
[372632163,1752718251420,-740.05,0.00019016,2]
[372632164,1752718251430,-2723.58,0.00019016,2]
[372632165,1752718251441,-460.0,0.00019016,2]
[372632166,1752718251451,-467.1323659,0.00019016,2]
[372632167,1752718251460,-460.0,0.00019016,2]
[372632168,1752718251470,-460.0,0.00019016,2]
[372632169,1752718251480,-3000.53,0.00019016,2]
[372632170,1752718251489,-460.0,0.00019017,2]
[372632171,1752718251500,-790.212097,0.00019017,2]
[372632172,1752718251510,-790.212097,0.00019017,2]
[372632173,1752718251520,-466.16290351,0.00019017,2]
[372632174,1752718251530,-151.0,0.00019017,2]
[372632175,1752718251539,-151.0,0.00019017,2]
[372632176,1752718251550,-252.937219,0.00019017,2]
[372632177,1752718251560,-470.10029292,0.00019017,2]
[372632178,1752718251569,-460.0,0.00019017,2]
[372632179,1752718251579,-462.06,0.00019017,2]
[372632180,1752718251588,-460.0,0.00019017,2]
[372632181,1752718251597,-463.66762211,0.00019017,2]
[372632182,1752718251606,-343.772556,0.00019017,2]
[372632183,1752718251616,-343.772556,0.00019017,2]
[372632184,1752718251625,-206.506608,0.00019017,2]
[372632185,1752718251635,-206.506608,0.00019017,2]
[372632186,1752718251644,-466.47860225,0.00019017,2]
[372632187,1752718251653,-460.0,0.00019017,2]
[372632188,1752718251663,-460.0,0.00019017,2]
[372632189,1752718251673,-451.24714679,0.00019017,2]
[372632190,1752718251683,-176.167926,0.00019018,2]
[372632191,1752718251692,-176.167926,0.00019018,2]
[372632192,1752718251702,-675.228133,0.00019018,2]
[372632193,1752718251712,-156.511881,0.00019018,2]
[372632194,1752718251721,-156.511881,0.00019018,2]
[372632195,1752718251731,-301.773818,0.00019018,2]
[372632196,1752718251740,-301.773818,0.00019018,2]
[372632197,1752718251750,-154.033612,0.00019018,2]
[372632198,1752718251852,-154.033612,0.00019018,2]
[372632199,1752718251862,-151.0,0.00019018,2]
[372632200,1752718251873,-151.0,0.00019018,2]
[372632201,1752718251882,-196.137102,0.00019018,2]
[372632202,1752718251892,-151.0,0.00019018,2]
[372632203,1752718251902,-196.137102,0.00019018,2]
[372632204,1752718251912,-293.619493,0.00019018,2]
[372632205,1752718251922,-293.619493,0.00019018,2]
[372632206,1752718251932,-466.21096912,0.00019018,2]
[372632207,1752718251941,-460.0,0.00019018,2]
[372632208,1752718251951,-460.0,0.00019018,2]
[372632209,1752718251961,-460.0,0.00019018,2]
[372632210,1752718251970,-1078.71,0.00019018,2]
[372632211,1752718251980,-151.0,0.00019018,2]
[372632212,1752718251989,-460.0,0.00019018,2]
[372632213,1752718251999,-460.0,0.00019018,2]
[372632214,1752718252009,-460.0,0.00019018,2]
[372632215,1752718252018,-460.0,0.00019018,2]
[372632216,1752718252028,-460.0,0.00019018,2]
[372632217,1752718252038,-460.0,0.00019018,2]
[372632218,1752718252047,-460.0,0.00019018,2]
[372632219,1752718252057,-460.0,0.00019018,2]
[372632220,1752718252067,-151.0,0.00019019,2]
[372632221,1752718252078,-468.06932638,0.00019019,2]
[372632222,1752718252089,-1129.212795,0.00019019,2]
[372632223,1752718252098,-1129.212795,0.00019019,2]
[372632224,1752718252107,-460.0,0.00019019,2]
[372632225,1752718252118,-466.80292362,0.00019019,2]
[372632226,1752718252128,-460.0,0.00019019,2]
[372632227,1752718252138,-460.0,0.00019019,2]
[372632228,1752718252148,-460.0,0.00019019,2]
[372632229,1752718252157,-472.29937864,0.00019019,2]
[372632230,1752718252167,-291.46808476,0.00019019,2]
[372632231,1752718252176,-460.0,0.00019019,2]
[372632232,1752718252186,-282.708891,0.00019019,2]
[372632233,1752718252196,-282.708891,0.00019019,2]
[372632234,1752718252205,-460.0,0.00019019,2]
[372632235,1752718252215,-152.526584,0.0001902,2]
[372632236,1752718252224,-176.167926,0.0001902,2]
[372632237,1752718252233,-176.167926,0.0001902,2]
[372632238,1752718252242,-675.228133,0.0001902,2]
[372632239,1752718252251,-151.0,0.0001902,2]
[372632240,1752718252260,-1000.0,0.00019021,2]
[372632241,1752718252269,-1000.0,0.00019021,2]
[372632242,1752718252278,-500.0,0.00019021,2]
[372632243,1752718252287,-1000.0,0.00019021,2]
[372632244,1752718252296,-502.3245406,0.00019021,2]
[372632245,1752718252306,-1000.0,0.00019021,2]
[372632246,1752718252315,-1000.0,0.00019021,2]
[372632247,1752718252339,-151.0,0.00019021,2]
[372632248,1752718252351,-156.511881,0.00019021,2]
[372632249,1752718252361,-156.511881,0.00019021,2]
[372632250,1752718252372,-301.773818,0.00019021,2]
[372632251,1752718252382,-301.773818,0.00019021,2]
[372632252,1752718252392,-151.0,0.0001903,2]
[372632253,1752718252402,-790.212097,0.0001903,2]
[372632254,1752718252412,-790.212097,0.0001903,2]
[372632255,1752718252422,-151.0,0.00019063,2]
[372632256,1752718252432,-151.0,0.00019063,2]
[372632257,1752718252442,-19313.41483182,0.00019097,2]
[372632258,1752718252452,-1552.07123053,0.00019131,2]
[372632259,1752718252462,-151.0,0.00019141,2]
[372632260,1752718252472,-154.033612,0.00019141,2]
[372632261,1752718252482,-154.033612,0.00019141,2]
[372632262,1752718252492,-151.0,0.00019141,2]
[372632263,1752718252501,-3439.47497908,0.00019176,2]
[372632264,1752718252970,-240.89402209,0.00018189,2]
[372632265,1752718253461,-219.10597791,0.00018189,2]
[372632266,1752718253473,-460.0,0.00018194,2]
[372632267,1752718253483,-7335.37561251,0.00019176,2]
[372632268,1752718253497,-741.44051109,0.00019176,2]
[372632269,1752718253507,-267.22119549,0.00019178,2]
[372632270,1752718253517,-500.0,0.00019178,2]
[372632271,1752718253527,-176.191626,0.00019178,2]
[372632272,1752718253537,-152.15622543,0.00019195,2]
[372632273,1752718253547,-168.0,0.00019196,2]
[372632274,1752718253557,-151.0,0.000192,2]
[372632275,1752718253567,-1129.212795,0.00019208,2]
[372632276,1752718253577,-1129.212795,0.00019208,2]
[372632277,1752718253586,-151.0,0.00019208,2]
[372632278,1752718253596,-151.0,0.00019208,2]
[372632279,1752718253606,-343.772556,0.00019208,2]
[372632280,1752718253616,-343.772556,0.00019208,2]
[372632281,1752718253626,-168.0,0.00019224,2]
[372632282,1752718253635,-196.137102,0.00019242,2]
[372632283,1752718253645,-292.590404,0.00019242,2]
[372632284,1752718253655,-196.137102,0.00019242,2]
[372632285,1752718253665,-151.0,0.00019245,2]
[372632286,1752718253675,-151.0,0.00019245,2]
[372632287,1752718253683,-151.0,0.00019245,2]
[372632288,1752718253694,-151.0,0.00019245,2]
[372632289,1752718253704,-662.0,0.00019245,2]
[372632290,1752718253714,-151.0,0.00019245,2]
[372632291,1752718253724,-152.2061558,0.00019245,2]
[372632292,1752718253733,-500.0,0.00019245,2]
[372632293,1752718253742,-328.38050536,0.00019245,2]
[372632294,1752718253783,-460.0,0.00018195,2]
[372632295,1752718253794,-1909.50044008,0.00018464,2]
[372632296,1752718253804,-460.0,0.00018469,2]
[372632297,1752718253817,-178.0216191,0.000187,2]
[372632298,1752718253826,-159.7314836,0.000187,2]
[372632299,1752718253836,-429.1687796,0.000187,2]
[372632300,1752718253845,-644.61949464,0.00019245,2]
[372632301,1752718253855,-151.0,0.00019245,2]
[372632302,1752718253865,-460.0,0.00019286,2]
[372632303,1752718253875,-460.0,0.00019286,2]
[372632304,1752718253885,-469.3269779,0.00019286,2]
[372632305,1752718253895,-460.0,0.00019286,2]
[372632306,1752718253905,-473.97,0.00019286,2]
[372632307,1752718253915,-3245.61,0.00019286,2]
[372632308,1752718253925,-466.00191895,0.00019287,2]
[372632309,1752718253935,-8756.79,0.00019287,2]
[372632310,1752718253944,-7790.94,0.00019287,2]
[372632311,1752718253953,-460.0,0.00019287,2]
[372632312,1752718253962,-4473.94,0.00019287,2]
[372632313,1752718253972,-460.0,0.00019287,2]
[372632314,1752718253980,-206.506608,0.00019287,2]
[372632315,1752718253990,-206.506608,0.00019287,2]
[372632316,1752718253999,-460.0,0.00019287,2]
[372632317,1752718254008,-1013.19,0.00019287,2]
[372632318,1752718254016,-3103.64,0.00019287,2]
[372632319,1752718254025,-566.12,0.00019287,2]
[372632320,1752718254034,-3461.44,0.00019287,2]
[372632321,1752718254043,-460.0,0.00019287,2]
[372632322,1752718254052,-460.0,0.00019287,2]
[372632323,1752718254061,-3088.13,0.00019287,2]
[372632324,1752718254070,-460.0,0.00019287,2]
[372632325,1752718254080,-460.0,0.00019288,2]
[372632326,1752718254090,-541.83976127,0.00019288,2]
[372632327,1752718254099,-460.0,0.00019288,2]
[372632328,1752718254109,-469.47424279,0.00019288,2]
[372632329,1752718254120,-449.02692363,0.00019288,2]
[372632330,1752718254130,-460.0,0.00019288,2]
[372632331,1752718254139,-460.0,0.00019288,2]
[372632332,1752718254149,-460.0,0.00019288,2]
[372632333,1752718254159,-857.9,0.00019288,2]
[372632334,1752718254168,-460.0,0.00019288,2]
[372632335,1752718254178,-460.0,0.00019288,2]
[372632336,1752718254187,-620.25,0.00019288,2]
[372632337,1752718254197,-936.93,0.00019288,2]
[372632338,1752718254207,-460.0,0.00019288,2]
[372632339,1752718254216,-769.67,0.00019288,2]
[372632340,1752718254226,-460.0,0.00019288,2]
[372632341,1752718254235,-746.18,0.00019288,2]
[372632342,1752718254245,-460.0,0.00019288,2]
[372632343,1752718254255,-875.17,0.00019288,2]
[372632344,1752718254266,-468.33316246,0.00019288,2]
[372632345,1752718254276,-1532.34,0.00019288,2]
[372632346,1752718254285,-786.85,0.00019288,2]
[372632347,1752718254294,-460.0,0.00019288,2]
[372632348,1752718254304,-460.0,0.00019288,2]
[372632349,1752718254314,-460.0,0.00019288,2]
[372632350,1752718254323,-306.74130257,0.00019288,2]
[372632351,1752718254333,-460.0,0.00019288,2]
[372632352,1752718254343,-519.99,0.00019289,2]
[372632353,1752718254352,-460.0,0.00019289,2]
[372632354,1752718254360,-151.0,0.00019289,2]
[372632355,1752718254371,-467.42506418,0.00019289,2]
[372632356,1752718254380,-460.0,0.00019289,2]
[372632357,1752718254389,-712.09,0.00019289,2]
[372632358,1752718254399,-1726.3,0.00019289,2]
[372632359,1752718254408,-898.95,0.00019289,2]
[372632360,1752718254417,-685.67,0.00019289,2]
[372632361,1752718254427,-460.0,0.00019289,2]
[372632362,1752718254436,-460.0,0.00019289,2]
[372632363,1752718254445,-460.0,0.00019289,2]
[372632364,1752718254454,-590.44,0.00019289,2]
[372632365,1752718254463,-663.06,0.00019289,2]
[372632366,1752718254473,-460.0,0.00019289,2]
[372632367,1752718254483,-460.0,0.00019289,2]
[372632368,1752718254492,-460.0,0.0001929,2]
[372632369,1752718254501,-460.0,0.0001929,2]
[372632370,1752718254511,-578.3,0.0001929,2]
[372632371,1752718254520,-460.0,0.0001929,2]
[372632372,1752718254530,-460.0,0.0001929,2]
[372632373,1752718254540,-805.3,0.0001929,2]
[372632374,1752718254549,-460.0,0.0001929,2]
[372632375,1752718254558,-466.75,0.0001929,2]
[372632376,1752718254567,-293.619493,0.0001929,2]
[372632377,1752718254577,-293.619493,0.0001929,2]
[372632378,1752718254586,-460.0,0.0001929,2]
[372632379,1752718254596,-856.6,0.0001929,2]
[372632380,1752718254605,-460.0,0.0001929,2]
[372632381,1752718254614,-649.93,0.0001929,2]
[372632382,1752718254623,-967.19,0.0001929,2]
[372632383,1752718254633,-1071.56,0.0001929,2]
[372632384,1752718254641,-460.0,0.0001929,2]
[372632385,1752718254651,-282.708891,0.0001929,2]
[372632386,1752718254659,-282.708891,0.0001929,2]
[372632387,1752718254668,-460.0,0.0001929,2]
[372632388,1752718254677,-460.0,0.0001929,2]
[372632389,1752718254687,-1415.87,0.0001929,2]
[372632390,1752718254696,-470.7258081,0.0001929,2]
[372632391,1752718254705,-563.75,0.0001929,2]
[372632392,1752718254714,-935.83,0.0001929,2]
[372632393,1752718254723,-616.4,0.0001929,2]
[372632394,1752718254735,-460.0,0.0001929,2]
[372632395,1752718254745,-2243.98,0.0001929,2]
[372632396,1752718254754,-460.0,0.0001929,2]
[372632397,1752718254764,-4796.11,0.0001929,2]
[372632398,1752718254774,-5566.33,0.0001929,2]
[372632399,1752718254785,-1639.65,0.0001929,2]
[372632400,1752718254796,-2114.97,0.0001929,2]
[372632401,1752718254806,-740.05,0.0001929,2]
[372632402,1752718254817,-2723.58,0.0001929,2]
[372632403,1752718254829,-460.0,0.0001929,2]
[372632404,1752718254839,-460.0,0.0001929,2]
[372632405,1752718254848,-460.0,0.0001929,2]
[372632406,1752718254858,-3000.53,0.0001929,2]
[372632407,1752718254870,-164.07177307,0.00019291,2]
[372632408,1752718254880,-151.0,0.00019291,2]
[372632409,1752718254890,-151.0,0.00019291,2]
[372632410,1752718254901,-460.0,0.00019291,2]
[372632411,1752718254910,-462.06,0.00019291,2]
[372632412,1752718254920,-460.0,0.00019291,2]
[372632413,1752718255011,-343.772556,0.00019291,2]
[372632414,1752718255021,-343.772556,0.00019291,2]
[372632415,1752718255030,-206.506608,0.00019291,2]
[372632416,1752718255041,-206.506608,0.00019291,2]
[372632417,1752718255050,-465.70031895,0.00019291,2]
[372632418,1752718255059,-460.0,0.00019291,2]
[372632419,1752718255068,-168.0,0.00019291,2]
[372632420,1752718255077,-176.167926,0.00019292,2]
[372632421,1752718255087,-176.167926,0.00019292,2]
[372632422,1752718255096,-152.293274,0.00019292,2]
[372632423,1752718255105,-790.212097,0.00019292,2]
[372632424,1752718255115,-790.212097,0.00019292,2]
[372632425,1752718255125,-196.137102,0.00019292,2]
[372632426,1752718255134,-196.137102,0.00019292,2]
[372632427,1752718255143,-46.38114722,0.00019292,2]
[372632428,1752718255155,-413.61885278,0.00019292,2]
[372632429,1752718255164,-468.46278351,0.00019292,2]
[372632430,1752718255173,-460.0,0.00019292,2]
[372632431,1752718255184,-1078.71,0.00019292,2]
[372632432,1752718255193,-460.0,0.00019292,2]
[372632433,1752718255202,-460.0,0.00019292,2]
[372632434,1752718255211,-460.0,0.00019292,2]
[372632435,1752718255220,-468.66538314,0.00019292,2]
[372632436,1752718255229,-460.0,0.00019292,2]
[372632437,1752718255238,-468.75273965,0.00019292,2]
[372632438,1752718255248,-460.0,0.00019292,2]
[372632439,1752718255257,-400.76255191,0.00019292,2]
[372632440,1752718255266,-675.228133,0.00019293,2]
[372632441,1752718255276,-156.511881,0.00019293,2]
[372632442,1752718255285,-156.511881,0.00019293,2]
[372632443,1752718255295,-301.773818,0.00019293,2]
[372632444,1752718255305,-301.773818,0.00019293,2]
[372632445,1752718255316,-154.033612,0.00019293,2]
[372632446,1752718255326,-154.033612,0.00019293,2]
[372632447,1752718255336,-1129.212795,0.00019293,2]
[372632448,1752718255345,-1129.212795,0.00019293,2]
[372632449,1752718255355,-151.0,0.00019293,2]
[372632450,1752718255364,-460.0,0.00019293,2]
[372632451,1752718255375,-460.0,0.00019293,2]
[372632452,1752718255385,-460.0,0.00019293,2]
[372632453,1752718255394,-460.0,0.00019293,2]
[372632454,1752718255404,-460.0,0.00019293,2]
[372632455,1752718255413,-282.708891,0.00019293,2]
[372632456,1752718255423,-282.708891,0.00019293,2]
[372632457,1752718255433,-151.0,0.00019293,2]
[372632458,1752718255443,-466.69504884,0.00019293,2]
[372632459,1752718255452,-151.0,0.00019294,2]
[372632460,1752718255462,-151.0,0.00019294,2]
[372632461,1752718255473,-319.151652,0.00019295,2]
[372632462,1752718255482,-319.151652,0.00019295,2]
[372632463,1752718255491,-196.001051,0.00019295,2]
[372632464,1752718255501,-196.001051,0.00019295,2]
[372632465,1752718255510,-197.064125,0.00019295,2]
[372632466,1752718255519,-197.064125,0.00019295,2]
[372632467,1752718255529,-151.0,0.000193,2]
[372632468,1752718255539,-151.0,0.00019305,2]
[372632469,1752718255548,-151.0,0.00019306,2]
[372632470,1752718255557,-176.167926,0.00019306,2]
[372632471,1752718255567,-176.167926,0.00019306,2]
[372632472,1752718255576,-168.0,0.00019307,2]
[372632473,1752718255585,-13662.58962674,0.00019324,2]
[372632474,1752718255594,-266.842087,0.00019325,2]
[372632475,1752718255603,-151.0,0.00019325,2]
[372632476,1752718255612,-675.228133,0.00019325,2]
[372632477,1752718255622,-156.511881,0.00019325,2]
[372632478,1752718255632,-156.511881,0.00019325,2]
[372632479,1752718255641,-301.773818,0.00019325,2]
[372632480,1752718255650,-301.773818,0.00019325,2]
[372632481,1752718255659,-293.619493,0.00019325,2]
[372632482,1752718255669,-293.619493,0.00019325,2]
[372632483,1752718255679,-500.0,0.00019329,2]
[372632484,1752718255688,-500.0,0.00019329,2]
[372632485,1752718255698,-500.0,0.00019329,2]
[372632486,1752718255707,-500.0,0.00019329,2]
[372632487,1752718255717,-500.0,0.00019329,2]
[372632488,1752718255725,-164.26806508,0.00019329,2]
[372632489,1752718255734,-500.0,0.00019329,2]
[372632490,1752718255743,-500.0,0.00019329,2]
[372632491,1752718255751,-507.28079603,0.00019329,2]
[372632492,1752718255760,-151.0,0.00019329,2]
[372632493,1752718255770,-151.0,0.00019329,2]
[372632494,1752718255781,-319.151652,0.00019329,2]
[372632495,1752718255791,-319.151652,0.00019329,2]
[372632496,1752718255800,-196.001051,0.00019329,2]
[372632497,1752718255809,-196.001051,0.00019329,2]
[372632498,1752718255821,-197.064125,0.00019329,2]
[372632499,1752718255830,-197.064125,0.00019329,2]
[372632500,1752718255840,-154.033612,0.00019329,2]
[372632501,1752718255849,-154.033612,0.00019329,2]
[372632502,1752718255859,-1129.212795,0.00019329,2]
[372632503,1752718255869,-1129.212795,0.00019329,2]
[372632504,1752718255879,-151.0,0.00019329,2]
[372632505,1752718255889,-790.212097,0.00019329,2]
[372632506,1752718255899,-790.212097,0.00019329,2]
[372632507,1752718255909,-196.137102,0.00019329,2]
[372632508,1752718255919,-196.137102,0.00019329,2]
[372632509,1752718255928,-151.0,0.00019329,2]
[372632510,1752718255938,-151.0,0.00019329,2]
[372632511,1752718255948,-282.708891,0.00019329,2]
[372632512,1752718255958,-282.708883,0.00019329,2]
[372632513,1752718255967,-343.772556,0.00019329,2]
[372632514,1752718255976,-343.772556,0.00019329,2]
[372632515,1752718255985,-206.506608,0.00019329,2]
[372632516,1752718255994,-206.506601,0.00019329,2]
[372632517,1752718256003,-160.0,0.00019329,2]
[372632518,1752718256013,-32623.35866247,0.00019329,2]
[372632519,1752718256022,-159.7314836,0.00019342,2]
[372632520,1752718256032,-159.7314836,0.00019342,2]
[372632521,1752718256041,-178.0216189,0.00019342,2]
[372632522,1752718256050,-159.7314836,0.00019342,2]
[372632523,1752718256060,-576.8651031,0.00019342,2]
[372632524,1752718256070,-178.0216191,0.00019342,2]
[372632525,1752718256079,-159.7314836,0.00019342,2]
[372632526,1752718256089,-178.0216189,0.00019342,2]
[372632527,1752718256098,-159.7314836,0.00019342,2]
[372632528,1752718256108,-576.8651031,0.00019342,2]
[372632529,1752718256117,-178.0216191,0.00019342,2]
[372632530,1752718256127,-576.8651031,0.00019342,2]
[372632531,1752718256137,-159.7314836,0.00019342,2]
[372632532,1752718256147,-178.0216189,0.00019342,2]
[372632533,1752718256159,-159.7314836,0.00019342,2]
[372632534,1752718256168,-576.8651031,0.00019342,2]
[372632535,1752718256178,-159.7314836,0.00019342,2]
[372632536,1752718256188,-576.8651031,0.00019342,2]
[372632537,1752718256197,-178.0216191,0.00019342,2]
[372632538,1752718256207,-159.7314836,0.00019342,2]
[372632539,1752718256216,-576.8651031,0.00019342,2]
[372632540,1752718256225,-178.0216189,0.00019342,2]
[372632541,1752718256235,-178.0216191,0.00019342,2]
[372632542,1752718256244,-576.8651031,0.00019342,2]
[372632543,1752718256253,-159.7314836,0.00019342,2]
[372632544,1752718256262,-162.146184,0.00019342,2]
[372632545,1752718256271,-180.5924207,0.00019342,2]
[372632546,1752718256281,-585.0957366,0.00019342,2]
[372632547,1752718256290,-178.0216189,0.00019342,2]
[372632548,1752718256298,-159.7314836,0.00019342,2]
[372632549,1752718256307,-576.8651031,0.00019342,2]
[372632550,1752718256316,-178.0216191,0.00019342,2]
[372632551,1752718256325,-576.8651031,0.00019342,2]
[372632552,1752718256333,-159.7314836,0.00019342,2]
[372632553,1752718256421,-159.7314836,0.00019342,2]
[372632554,1752718256431,-576.8651031,0.00019342,2]
[372632555,1752718256441,-179.5070268,0.00019342,2]
[372632556,1752718256450,-159.7314836,0.00019342,2]
[372632557,1752718256460,-576.8651031,0.00019342,2]
[372632558,1752718256470,-576.8651031,0.00019342,2]
[372632559,1752718256481,-159.7314836,0.00019342,2]
[372632560,1752718256490,-159.7314836,0.00019342,2]
[372632561,1752718256500,-576.333126,0.00019342,2]
[372632562,1752718256509,-159.7314836,0.00019342,2]
[372632563,1752718256518,-159.7314836,0.00019342,2]
[372632564,1752718256527,-158.6178473,0.00019342,2]
[372632565,1752718256537,-5000.0,0.00019346,2]
[372632566,1752718256547,-4061.0,0.00019371,2]
[372632567,1752718256557,-1000.0,0.0001938,2]
[372632568,1752718256566,-176.167926,0.00019383,2]
[372632569,1752718256576,-176.167926,0.00019383,2]
[372632570,1752718256585,-156.511881,0.00019396,2]
[372632571,1752718256595,-156.511881,0.00019396,2]
[372632572,1752718256604,-301.773818,0.00019396,2]
[372632573,1752718256613,-301.773818,0.00019396,2]
[372632574,1752718256623,-151.0,0.000194,2]
[372632575,1752718256632,-151.0,0.000194,2]
[372632576,1752718256641,-500.0,0.00019436,2]
[372632577,1752718256650,-168.0,0.00019447,2]
[372632578,1752718256658,-500.0,0.00019448,2]
[372632579,1752718256667,-8315.37849069,0.00019452,2]
[372632580,1752718270645,954.6696388,0.00018021,2]
[372632581,1752718290625,1000.0,0.00018097,2]
[372632582,1752718299745,4988.2,0.00023,30]
[372632599,1752718568360,266.57719137,0.00018089,2]
[372632602,1752718651890,1000.0,0.00027,120]
[372632603,1752718661695,150.0,0.00017478,2]
[372632607,1752718719683,2711.75001526,0.00025896,120]
[372632608,1752718743639,215.2502091,0.00018086,2]
[372632612,1752718830219,233.25504244,0.00018088,2]
[372632615,1752718904618,1547.0,0.000273,120]
[372632622,1752719002925,800.0,0.00017955,2]
[372632624,1752719105136,266.346696,0.00013699,2]
[372632636,1752719312965,2757.51681164,0.00027,120]
[372632637,1752719313441,184.93280386,0.00025,120]
[372632638,1752719314075,607.26550312,0.00025904,60]
[372632640,1752719316553,155.90250965,0.00027397,120]
[372632641,1752719323533,158.59860812,0.00025904,120]
[372632643,1752719331068,204.09816217,0.00018082,2]
[372632659,1752719428578,267.6628878,0.00017181,2]
[372632700,1752719432743,-350.01,0.00018178,3]
[372632702,1752719432753,-207.4,0.00018178,2]
[372632712,1752719432890,-520.491282,0.00018179,2]
[372632713,1752719432939,-679.508718,0.00018179,2]
[372632714,1752719432948,-300.0,0.00018179,2]
[372632715,1752719432957,-603.20832978,0.00018179,2]
[372632716,1752719432967,-462.68571048,0.00018179,2]
[372632717,1752719432976,-500.0,0.00018179,2]
[372632718,1752719432986,-129.79512368,0.00018179,2]
[372632721,1752719433007,-370.20487632,0.00018179,2]
[372632723,1752719433017,-397.59519644,0.00018179,2]
[372632724,1752719433027,-500.0,0.00018179,2]
[372632725,1752719433037,-500.0,0.00018179,2]
[372632726,1752719433046,-500.0,0.00018179,2]
[372632727,1752719433057,-214.41424921,0.00018179,2]
[372632734,1752719438624,-285.58575079,0.00018179,2]
[372632735,1752719438634,-500.0,0.00018179,2]
[372632736,1752719438644,-500.0,0.00018179,2]